[Event "*** SCC Grand Prix: Titled Tuesday Blitz"]
[Site "Chess.com"]
[Date "2020.09.08"]
[Round "7"]
[White "GMKrikor"]
[Black "angryhorse9"]
[Result "1/2-1/2"]
[WhiteElo "2683"]
[BlackElo "2515"]
[TimeControl "180+1"]
[EndTime "11:20:03 PDT"]
[Termination "Game drawn by repetition"]

1. e4 {[%clk 0:02:59.3]} 1... c5 {[%clk 0:02:59.7]} 2. Nf3 {[%clk 0:02:56.4]}
2... d6 {[%clk 0:03:00.3]} 3. d4 {[%clk 0:02:50.4]} 3... Nf6 {[%clk 0:03:00.5]}
4. Nc3 {[%clk 0:02:49.2]} 4... cxd4 {[%clk 0:03:01.1]} 5. Nxd4 {[%clk
0:02:48.5]} 5... Nc6 {[%clk 0:03:01.7]} 6. Bg5 {[%clk 0:02:44.8]} 6... e6 {[%clk
0:03:01.8]} 7. Qd2 {[%clk 0:02:42]} 7... Be7 {[%clk 0:03:02.1]} 8. O-O-O {[%clk
0:02:41.2]} 8... Nxd4 {[%clk 0:03:02.6]} 9. Qxd4 {[%clk 0:02:41.1]} 9... a6
{[%clk 0:03:03.3]} 10. f4 {[%clk 0:02:37.4]} 10... b5 {[%clk 0:03:02.7]} 11.
Bxf6 {[%clk 0:02:36.5]} 11... gxf6 {[%clk 0:03:03.3]} 12. Kb1 {[%clk 0:02:27.9]}
12... Bd7 {[%clk 0:03:01.4]} 13. f5 {[%clk 0:02:25.1]} 13... Qc7 {[%clk
0:02:57.7]} 14. Be2 {[%clk 0:02:19.3]} 14... h5 {[%clk 0:02:57.8]} 15. Rhf1
{[%clk 0:02:06.7]} 15... O-O-O {[%clk 0:02:35.9]} 16. a4 {[%clk 0:01:58.1]}
16... Qb7 {[%clk 0:02:28.3]} 17. axb5 {[%clk 0:01:54.6]} 17... axb5 {[%clk
0:02:28.7]} 18. fxe6 {[%clk 0:01:26.9]} 18... fxe6 {[%clk 0:02:27.8]} 19. Qb4
{[%clk 0:01:26.6]} 19... Bc6 {[%clk 0:02:12.3]} 20. Bxb5 {[%clk 0:01:25.8]}
20... Kc7 {[%clk 0:01:46.3]} 21. Qc4 {[%clk 0:01:14]} 21... Kd7 {[%clk
0:01:45.5]} 22. Bxc6+ {[%clk 0:01:06.8]} 22... Qxc6 {[%clk 0:01:46.4]} 23. Qxc6+
{[%clk 0:01:06.7]} 23... Kxc6 {[%clk 0:01:47.1]} 24. Ne2 {[%clk 0:01:03.1]}
24... Kd7 {[%clk 0:01:42.2]} 25. g3 {[%clk 0:00:59.2]} 25... Ra8 {[%clk
0:01:42.1]} 26. c3 {[%clk 0:00:58.8]} 26... Ra4 {[%clk 0:01:40.1]} 27. Rd4
{[%clk 0:00:57.7]} 27... Ra6 {[%clk 0:01:35.7]} 28. Kc2 {[%clk 0:00:57]} 28...
Rb8 {[%clk 0:01:36.2]} 29. Rd3 {[%clk 0:00:48.8]} 29... Ra2 {[%clk 0:01:26.4]}
30. Rb1 {[%clk 0:00:48.2]} 30... Ra5 {[%clk 0:01:21.1]} 31. Nd4 {[%clk
0:00:37.2]} 31... Rh8 {[%clk 0:01:17.5]} 32. Nf3 {[%clk 0:00:36.1]} 32... Rb8
{[%clk 0:01:16.1]} 33. b4 {[%clk 0:00:32.9]} 33... Ra2+ {[%clk 0:01:14.8]} 34.
Rb2 {[%clk 0:00:33.2]} 34... Ra1 {[%clk 0:01:15.4]} 35. Rd1 {[%clk 0:00:31.3]}
35... Ra7 {[%clk 0:01:15]} 36. Kd3 {[%clk 0:00:29.8]} 36... Ra3 {[%clk
0:01:13.8]} 37. Rdb1 {[%clk 0:00:27.5]} 37... Rb5 {[%clk 0:01:11.2]} 38. Rb3
{[%clk 0:00:27.1]} 38... Ra2 {[%clk 0:01:01.8]} 39. R1b2 {[%clk 0:00:27.5]}
39... Ra1 {[%clk 0:01:01.8]} 40. Rb1 {[%clk 0:00:26.9]} 40... Ra2 {[%clk
0:01:01.4]} 41. R3b2 {[%clk 0:00:26.2]} 41... Ra3 {[%clk 0:01:01.3]} 42. Nd4
{[%clk 0:00:26.8]} 42... Rb8 {[%clk 0:01:00.3]} 43. Rb3 {[%clk 0:00:26.3]} 43...
Ra2 {[%clk 0:00:59.3]} 44. Nc2 {[%clk 0:00:24.4]} 44... h4 {[%clk 0:00:53.8]}
45. gxh4 {[%clk 0:00:23.9]} 45... Rh8 {[%clk 0:00:53.7]} 46. R1b2 {[%clk
0:00:21.6]} 46... Raa8 {[%clk 0:00:50.1]} 47. Ra3 {[%clk 0:00:19]} 47... Rxa3
{[%clk 0:00:47.2]} 48. Nxa3 {[%clk 0:00:19.2]} 48... Rxh4 {[%clk 0:00:48]} 49.
Nc4 {[%clk 0:00:15.6]} 49... Rh3+ {[%clk 0:00:47.5]} 50. Ne3 {[%clk 0:00:14.9]}
50... Bd8 {[%clk 0:00:46.7]} 51. Re2 {[%clk 0:00:07.7]} 51... Bb6 {[%clk
0:00:46.6]} 52. Kd2 {[%clk 0:00:07.1]} 52... Bxe3+ {[%clk 0:00:46.1]} 53. Rxe3
{[%clk 0:00:08]} 53... Rxh2+ {[%clk 0:00:46.7]} 54. Kd3 {[%clk 0:00:08.6]} 54...
Rh5 {[%clk 0:00:44.2]} 55. Rg3 {[%clk 0:00:08.2]} 55... f5 {[%clk 0:00:44.7]}
56. exf5 {[%clk 0:00:06]} 56... Rxf5 {[%clk 0:00:45.6]} 57. Rg7+ {[%clk
0:00:06.2]} 57... Kc6 {[%clk 0:00:45.9]} 58. c4 {[%clk 0:00:06.8]} 58... Rf3+
{[%clk 0:00:32.2]} 59. Ke4 {[%clk 0:00:06.5]} 59... Rf1 {[%clk 0:00:29.5]} 60.
b5+ {[%clk 0:00:06.8]} 60... Kb6 {[%clk 0:00:29.1]} 61. Rd7 {[%clk 0:00:06.4]}
61... Rd1 {[%clk 0:00:26.7]} 62. Rd8 {[%clk 0:00:04.9]} 62... e5 {[%clk
0:00:22.1]} 63. Rd7 {[%clk 0:00:04]} 63... Rd4+ {[%clk 0:00:22.1]} 64. Ke3
{[%clk 0:00:02.9]} 64... Rxc4 {[%clk 0:00:22.8]} 65. Rxd6+ {[%clk 0:00:02.9]}
65... Kxb5 {[%clk 0:00:23.4]} 66. Rd5+ {[%clk 0:00:03.4]} 66... Rc5 {[%clk
0:00:23.9]} 67. Rxc5+ {[%clk 0:00:03.9]} 67... Kxc5 {[%clk 0:00:24.8]} 68. Ke4
{[%clk 0:00:04.8]} 68... Kd6 {[%clk 0:00:25.3]} 69. Ke3 {[%clk 0:00:05.5]} 69...
Ke6 {[%clk 0:00:26.2]} 70. Ke4 {[%clk 0:00:06.4]} 70... Kf6 {[%clk 0:00:26.8]}
71. Ke3 {[%clk 0:00:07.3]} 71... Kf5 {[%clk 0:00:27.7]} 72. Kf3 {[%clk
0:00:07.7]} 72... e4+ {[%clk 0:00:28.6]} 73. Ke3 {[%clk 0:00:08.1]} 73... Ke5
{[%clk 0:00:29.5]} 74. Ke2 {[%clk 0:00:08.8]} 74... Kf4 {[%clk 0:00:30.4]} 75.
Kf2 {[%clk 0:00:08.8]} 75... e3+ {[%clk 0:00:31.3]} 76. Ke2 {[%clk 0:00:09.2]}
76... Ke4 {[%clk 0:00:32.2]} 77. Ke1 {[%clk 0:00:09.8]} 77... Kd3 {[%clk
0:00:33.1]} 78. Kd1 {[%clk 0:00:10.2]} 78... Kd4 {[%clk 0:00:34]} 79. Ke2 {[%clk
0:00:10.5]} 79... Ke4 {[%clk 0:00:34.7]} 80. Ke1 {[%clk 0:00:11.4]} 80... Kf3
{[%clk 0:00:35.2]} 81. Kf1 {[%clk 0:00:11.6]} 81... Kf4 {[%clk 0:00:35.4]} 82.
Ke2 {[%clk 0:00:11.6]} 82... Ke4 {[%clk 0:00:36.3]} 1/2-1/2

[Event "*** SCC Grand Prix: Titled Tuesday Blitz"]
[Site "Chess.com"]
[Date "2020.09.08"]
[Round "7"]
[White "Fandorine"]
[Black "DenLaz"]
[Result "1/2-1/2"]
[WhiteElo "2914"]
[BlackElo "2774"]
[TimeControl "180+1"]
[EndTime "11:20:05 PDT"]
[Termination "Game drawn by agreement"]

1. e4 {[%clk 0:03:00.9]} 1... e5 {[%clk 0:02:58.7]} 2. Nf3 {[%clk 0:03:00.7]}
2... Nc6 {[%clk 0:02:58.8]} 3. Bc4 {[%clk 0:03:01.4]} 3... Bc5 {[%clk
0:02:58.2]} 4. d3 {[%clk 0:03:01.6]} 4... Nf6 {[%clk 0:02:58.1]} 5. Nbd2 {[%clk
0:03:02.2]} 5... d6 {[%clk 0:02:57.7]} 6. c3 {[%clk 0:03:01.3]} 6... O-O {[%clk
0:02:57.5]} 7. h3 {[%clk 0:02:54.2]} 7... Be6 {[%clk 0:02:55.2]} 8. Bb3 {[%clk
0:02:52.1]} 8... a5 {[%clk 0:02:38.8]} 9. a4 {[%clk 0:02:47.2]} 9... Re8 {[%clk
0:02:34.3]} 10. Ng5 {[%clk 0:02:37.2]} 10... Bxb3 {[%clk 0:02:26.2]} 11. Qxb3
{[%clk 0:02:38.1]} 11... Qd7 {[%clk 0:02:25.9]} 12. O-O {[%clk 0:02:33.8]} 12...
h6 {[%clk 0:02:24.8]} 13. Ngf3 {[%clk 0:02:33.7]} 13... Rab8 {[%clk 0:02:19.6]}
14. Re1 {[%clk 0:02:28]} 14... d5 {[%clk 0:01:54.6]} 15. exd5 {[%clk 0:02:17.6]}
15... Qxd5 {[%clk 0:01:45.7]} 16. Qxd5 {[%clk 0:02:14.1]} 16... Nxd5 {[%clk
0:01:46.6]} 17. Nc4 {[%clk 0:02:07]} 17... f6 {[%clk 0:01:45]} 18. Bd2 {[%clk
0:01:54.2]} 18... Rbd8 {[%clk 0:01:32.3]} 19. Rad1 {[%clk 0:01:53.4]} 19... Nb6
{[%clk 0:01:26.4]} 20. Nxb6 {[%clk 0:01:53.1]} 20... Bxb6 {[%clk 0:01:26.5]} 21.
Be3 {[%clk 0:01:36.5]} 21... Bxe3 {[%clk 0:01:22.5]} 22. Rxe3 {[%clk 0:01:37.4]}
22... Rd7 {[%clk 0:01:05.3]} 23. Kf1 {[%clk 0:01:21.4]} 23... Red8 {[%clk
0:01:04.1]} 24. g3 {[%clk 0:01:16.9]} 24... Kf7 {[%clk 0:00:59]} 25. Ke2 {[%clk
0:01:06.9]} 25... Ne7 {[%clk 0:00:57.3]} 26. Re4 {[%clk 0:00:59.8]} 26... Nf5
{[%clk 0:00:50.6]} 27. g4 {[%clk 0:00:40]} 27... Nd6 {[%clk 0:00:48.7]} 28. Re3
{[%clk 0:00:40.3]} 28... b6 {[%clk 0:00:44.5]} 29. b3 {[%clk 0:00:35]} 29... Nb7
{[%clk 0:00:38.3]} 30. d4 {[%clk 0:00:33.6]} 30... Nc5 {[%clk 0:00:18.5]} 31.
Rb1 {[%clk 0:00:28.2]} 31... exd4 {[%clk 0:00:18.8]} 32. Nxd4 {[%clk 0:00:25.9]}
32... Re8 {[%clk 0:00:19.3]} 33. Rxe8 {[%clk 0:00:20.4]} 33... Kxe8 {[%clk
0:00:20.2]} 34. f3 {[%clk 0:00:20.9]} 34... Kf7 {[%clk 0:00:20.6]} 35. Ke3
{[%clk 0:00:21]} 35... Re7+ {[%clk 0:00:20.8]} 36. Kd2 {[%clk 0:00:21.1]} 36...
Rd7 {[%clk 0:00:20.9]} 37. h4 {[%clk 0:00:16.5]} 37... Ne6 {[%clk 0:00:20.3]}
38. Ke3 {[%clk 0:00:16.3]} 38... Nxd4 {[%clk 0:00:20.3]} 39. cxd4 {[%clk
0:00:17.2]} 39... g6 {[%clk 0:00:20.4]} 40. Rc1 {[%clk 0:00:16.5]} 40... Ke7
{[%clk 0:00:16.8]} 41. Rc6 {[%clk 0:00:16.2]} 41... Kf7 {[%clk 0:00:17.1]} 42.
Ke4 {[%clk 0:00:15.1]} 42... Re7+ {[%clk 0:00:17.2]} 43. Kd3 {[%clk 0:00:15.2]}
43... Rd7 {[%clk 0:00:17.5]} 44. h5 {[%clk 0:00:14.8]} 44... gxh5 {[%clk
0:00:14.6]} 45. gxh5 {[%clk 0:00:15.7]} 45... Re7 {[%clk 0:00:15.3]} 46. f4
{[%clk 0:00:09.8]} 46... Kg7 {[%clk 0:00:14.7]} 47. d5 {[%clk 0:00:07.8]} 47...
Kf7 {[%clk 0:00:13.7]} 48. Kd4 {[%clk 0:00:07.9]} 48... Rd7 {[%clk 0:00:12.4]}
49. Ke4 {[%clk 0:00:07.2]} 49... Ke7 {[%clk 0:00:12.2]} 50. Re6+ {[%clk
0:00:06.7]} 50... Kf7 {[%clk 0:00:12.2]} 51. Rc6 {[%clk 0:00:07.2]} 51... Ke7
{[%clk 0:00:12.5]} 52. Rc1 {[%clk 0:00:06.1]} 52... Kf7 {[%clk 0:00:12.4]} 53.
Rg1 {[%clk 0:00:06.8]} 53... Re7+ {[%clk 0:00:12.3]} 54. Kd4 {[%clk 0:00:07.1]}
54... Re2 {[%clk 0:00:10.3]} 55. Rc1 {[%clk 0:00:07.4]} 55... Re7 {[%clk
0:00:10.3]} 56. f5 {[%clk 0:00:07.5]} 56... Rd7 {[%clk 0:00:10.2]} 57. Rc6
{[%clk 0:00:07.7]} 57... Ke7 {[%clk 0:00:09.3]} 58. Ke4 {[%clk 0:00:08.2]} 58...
Kf7 {[%clk 0:00:09]} 59. d6 {[%clk 0:00:08.8]} 59... Rxd6 {[%clk 0:00:05.7]} 60.
Rxd6 {[%clk 0:00:08.3]} 60... cxd6 {[%clk 0:00:05.6]} 61. Kd5 {[%clk 0:00:08.8]}
61... Ke7 {[%clk 0:00:06.1]} 62. Kc6 {[%clk 0:00:09.1]} 62... d5 {[%clk
0:00:06.4]} 63. Kxd5 {[%clk 0:00:08.7]} 63... Kd7 {[%clk 0:00:06.7]} 64. Kd4
{[%clk 0:00:06.1]} 64... Kd6 {[%clk 0:00:06.6]} 65. Kc4 {[%clk 0:00:05.7]} 65...
Kc6 {[%clk 0:00:06.9]} 66. Kd4 {[%clk 0:00:05.9]} 1/2-1/2

[Event "*** SCC Grand Prix: Titled Tuesday Blitz"]
[Site "Chess.com"]
[Date "2020.09.08"]
[Round "7"]
[White "Shield12"]
[Black "Bigfish1995"]
[Result "0-1"]
[WhiteElo "2839"]
[BlackElo "3018"]
[TimeControl "180+1"]
[EndTime "11:20:10 PDT"]
[Termination "Bigfish1995 won by resignation"]

1. e4 {[%clk 0:03:00.9]} 1... c5 {[%clk 0:02:59.9]} 2. Nf3 {[%clk 0:03:00.7]}
2... d6 {[%clk 0:03:00.4]} 3. Bb5+ {[%clk 0:02:59.9]} 3... Nd7 {[%clk 0:03:00]}
4. Ba4 {[%clk 0:03:00.2]} 4... Nf6 {[%clk 0:02:57.8]} 5. O-O {[%clk 0:03:00.2]}
5... g6 {[%clk 0:02:58.4]} 6. Re1 {[%clk 0:02:59.4]} 6... Bg7 {[%clk 0:02:58.7]}
7. c3 {[%clk 0:03:00]} 7... a6 {[%clk 0:02:57.2]} 8. d4 {[%clk 0:02:58.7]} 8...
b5 {[%clk 0:02:57.3]} 9. Bc2 {[%clk 0:02:58.7]} 9... e5 {[%clk 0:02:51.8]} 10.
dxe5 {[%clk 0:02:45]} 10... dxe5 {[%clk 0:02:51.7]} 11. Qd6 {[%clk 0:02:30.2]}
11... Bb7 {[%clk 0:02:51.1]} 12. a4 {[%clk 0:02:19.5]} 12... Qb8 {[%clk
0:02:33.5]} 13. Qxb8+ {[%clk 0:02:14.5]} 13... Rxb8 {[%clk 0:02:33.6]} 14. axb5
{[%clk 0:02:15.4]} 14... axb5 {[%clk 0:02:34.5]} 15. Nbd2 {[%clk 0:01:56.5]}
15... Ke7 {[%clk 0:02:31.4]} 16. Nb3 {[%clk 0:01:51.2]} 16... Ra8 {[%clk
0:02:25]} 17. Ra5 {[%clk 0:01:46.8]} 17... c4 {[%clk 0:02:22.6]} 18. Rxa8 {[%clk
0:01:42.6]} 18... Rxa8 {[%clk 0:02:23.5]} 19. Nbd2 {[%clk 0:01:42.5]} 19... Ne8
{[%clk 0:02:09]} 20. b3 {[%clk 0:01:40.9]} 20... Nd6 {[%clk 0:02:06.5]} 21. bxc4
{[%clk 0:01:38.8]} 21... bxc4 {[%clk 0:02:06.7]} 22. Bb2 {[%clk 0:01:34.8]}
22... Nc5 {[%clk 0:02:05.1]} 23. h3 {[%clk 0:01:12.7]} 23... Ra2 {[%clk
0:02:02.6]} 24. Rb1 {[%clk 0:01:09.7]} 24... Ncxe4 {[%clk 0:02:01.6]} 25. Nxe4
{[%clk 0:00:57.2]} 25... Bxe4 {[%clk 0:02:00.9]} 26. Ne1 {[%clk 0:00:53.7]}
26... Bh6 {[%clk 0:01:49]} 27. Bxe4 {[%clk 0:00:47.3]} 27... Nxe4 {[%clk
0:01:48.8]} 28. Nc2 {[%clk 0:00:48.2]} 28... Bd2 {[%clk 0:01:34.1]} 29. Nb4
{[%clk 0:00:47.6]} 29... Ra4 {[%clk 0:01:33.6]} 30. f3 {[%clk 0:00:44.8]} 30...
Nf6 {[%clk 0:01:18.1]} 31. Kf2 {[%clk 0:00:41.4]} 31... Ke6 {[%clk 0:01:11.8]}
32. Rd1 {[%clk 0:00:40.3]} 32... Bh6 {[%clk 0:01:10.6]} 33. Rd8 {[%clk
0:00:39.5]} 33... Nh5 {[%clk 0:00:40.5]} 34. Rc8 {[%clk 0:00:38.3]} 34... Nf4
{[%clk 0:00:40]} 35. Rc6+ {[%clk 0:00:31.8]} 35... Ke7 {[%clk 0:00:29.1]} 36.
Bc1 {[%clk 0:00:22.6]} 36... Nxh3+ {[%clk 0:00:13.5]} 37. gxh3 {[%clk 0:00:21]}
37... Bxc1 {[%clk 0:00:14]} 38. Rxc4 {[%clk 0:00:21]} 38... Ra3 {[%clk
0:00:12.8]} 39. Nd3 {[%clk 0:00:19]} 39... Bd2 {[%clk 0:00:13.2]} 40. Nxe5
{[%clk 0:00:18]} 40... Bxc3 {[%clk 0:00:13.6]} 41. Re4 {[%clk 0:00:11.3]} 41...
f5 {[%clk 0:00:12.6]} 42. Re2 {[%clk 0:00:10.7]} 42... Bd4+ {[%clk 0:00:12.1]}
43. Kg2 {[%clk 0:00:10.6]} 43... Kf6 {[%clk 0:00:12.6]} 44. Nd7+ {[%clk
0:00:10.3]} 44... Kg5 {[%clk 0:00:13]} 45. Nf8 {[%clk 0:00:10.3]} 45... Be3
{[%clk 0:00:10.1]} 46. Nxh7+ {[%clk 0:00:08.3]} 46... Kf4 {[%clk 0:00:07.9]} 47.
Nf6 {[%clk 0:00:08.4]} 47... Rd3 {[%clk 0:00:08]} 48. h4 {[%clk 0:00:07.9]}
48... Bb6 {[%clk 0:00:05.3]} 49. h5 {[%clk 0:00:06.2]} 49... Bd8 {[%clk
0:00:03.8]} 50. Ng8 {[%clk 0:00:02.5]} 50... gxh5 {[%clk 0:00:03.9]} 51. Ne7
{[%clk 0:00:02.6]} 51... Bxe7 {[%clk 0:00:03.6]} 52. Rxe7 {[%clk 0:00:03.5]}
52... Rxf3 {[%clk 0:00:03.5]} 53. Rh7 {[%clk 0:00:03.2]} 53... Rg3+ {[%clk
0:00:04]} 54. Kf2 {[%clk 0:00:03.5]} 54... Rg5 {[%clk 0:00:04.9]} 55. Rh8 {[%clk
0:00:03.6]} 55... Kg4 {[%clk 0:00:05.6]} 56. Kg2 {[%clk 0:00:03.4]} 56... f4
{[%clk 0:00:05.6]} 57. Ra8 {[%clk 0:00:02.9]} 57... h4 {[%clk 0:00:05.6]} 58.
Ra3 {[%clk 0:00:02.5]} 58... Re5 {[%clk 0:00:05.3]} 59. Ra8 {[%clk 0:00:02.1]}
59... Re2+ {[%clk 0:00:05.6]} 60. Kf1 {[%clk 0:00:02]} 60... Rb2 {[%clk
0:00:05.7]} 61. Ra3 {[%clk 0:00:02.2]} 61... h3 {[%clk 0:00:05.7]} 62. Ra8
{[%clk 0:00:03.1]} 62... h2 {[%clk 0:00:05.6]} 63. Rg8+ {[%clk 0:00:03.5]} 63...
Kf3 {[%clk 0:00:05.8]} 0-1

[Event "*** SCC Grand Prix: Titled Tuesday Blitz"]
[Site "Chess.com"]
[Date "2020.09.08"]
[Round "7"]
[White "QuintilianoR"]
[Black "wonderfultime"]
[Result "0-1"]
[WhiteElo "2612"]
[BlackElo "2921"]
[TimeControl "180+1"]
[EndTime "11:20:38 PDT"]
[Termination "wonderfultime won on time"]

1. d4 {[%clk 0:03:00.9]} 1... d5 {[%clk 0:02:53.1]} 2. c4 {[%clk 0:03:01.1]}
2... c6 {[%clk 0:02:53.5]} 3. Nc3 {[%clk 0:03:01]} 3... Nf6 {[%clk 0:02:53.7]}
4. cxd5 {[%clk 0:03:01.1]} 4... cxd5 {[%clk 0:02:54.1]} 5. Bf4 {[%clk
0:03:01.5]} 5... Nc6 {[%clk 0:02:53.7]} 6. e3 {[%clk 0:03:01.9]} 6... a6 {[%clk
0:02:54.2]} 7. Bd3 {[%clk 0:03:01.2]} 7... Bg4 {[%clk 0:02:54.4]} 8. Nge2 {[%clk
0:03:01.7]} 8... e6 {[%clk 0:02:54.5]} 9. O-O {[%clk 0:03:01.6]} 9... Bd6 {[%clk
0:02:54.3]} 10. f3 {[%clk 0:03:01.4]} 10... Bh5 {[%clk 0:02:53.8]} 11. Rc1
{[%clk 0:03:01.4]} 11... O-O {[%clk 0:02:48.7]} 12. Na4 {[%clk 0:02:49.9]} 12...
e5 {[%clk 0:02:33.5]} 13. dxe5 {[%clk 0:02:48.8]} 13... Nxe5 {[%clk 0:02:34.4]}
14. Bb1 {[%clk 0:02:47.2]} 14... Re8 {[%clk 0:01:58.6]} 15. b3 {[%clk
0:02:25.9]} 15... Bg6 {[%clk 0:01:52.4]} 16. Nc5 {[%clk 0:01:55.4]} 16... Qe7
{[%clk 0:01:43.4]} 17. Bxg6 {[%clk 0:01:27.1]} 17... Bxc5 {[%clk 0:01:30.4]} 18.
Bb1 {[%clk 0:01:18.6]} 18... Ng6 {[%clk 0:01:30.3]} 19. Bxg6 {[%clk 0:01:07.5]}
19... Bxe3+ {[%clk 0:01:28.2]} 20. Bxe3 {[%clk 0:00:59.3]} 20... Qxe3+ {[%clk
0:01:29.1]} 21. Rf2 {[%clk 0:00:57.8]} 21... hxg6 {[%clk 0:01:28.4]} 22. Rc3
{[%clk 0:00:57.5]} 22... Qb6 {[%clk 0:01:22.2]} 23. Qd4 {[%clk 0:00:55.7]} 23...
Qd6 {[%clk 0:01:16.5]} 24. Nf4 {[%clk 0:00:48.9]} 24... Re1+ {[%clk 0:01:08.5]}
25. Rf1 {[%clk 0:00:48.6]} 25... Rxf1+ {[%clk 0:01:09]} 26. Kxf1 {[%clk
0:00:49.5]} 26... g5 {[%clk 0:01:09.9]} 27. Nh3 {[%clk 0:00:42.4]} 27... Qxh2
{[%clk 0:01:03.1]} 28. Nxg5 {[%clk 0:00:41.3]} 28... Qh1+ {[%clk 0:01:03.4]} 29.
Kf2 {[%clk 0:00:40.5]} 29... Re8 {[%clk 0:01:00.4]} 30. Re3 {[%clk 0:00:39.6]}
30... Rc8 {[%clk 0:01:00.4]} 31. Re2 {[%clk 0:00:32.5]} 31... Qh6 {[%clk
0:00:26]} 32. Nh3 {[%clk 0:00:14]} 32... Qc1 {[%clk 0:00:24.9]} 33. Nf4 {[%clk
0:00:13.3]} 33... Rd8 {[%clk 0:00:17.4]} 34. Rd2 {[%clk 0:00:12.2]} 34... Qh1
{[%clk 0:00:14.3]} 35. Nh3 {[%clk 0:00:10.7]} 35... Re8 {[%clk 0:00:14.5]} 36.
Rd1 {[%clk 0:00:08.3]} 36... Qh2 {[%clk 0:00:14.3]} 37. Qf4 {[%clk 0:00:08.7]}
37... Qxf4 {[%clk 0:00:10.8]} 38. Nxf4 {[%clk 0:00:09.6]} 38... Rd8 {[%clk
0:00:11.6]} 39. Rc1 {[%clk 0:00:10.1]} 39... Rd7 {[%clk 0:00:04.7]} 40. Rc8+
{[%clk 0:00:10.1]} 40... Kh7 {[%clk 0:00:05.6]} 41. Ke3 {[%clk 0:00:10.2]} 41...
g5 {[%clk 0:00:05.3]} 42. Nd3 {[%clk 0:00:08.6]} 42... Re7+ {[%clk 0:00:05]} 43.
Kd2 {[%clk 0:00:09.1]} 43... Kg7 {[%clk 0:00:05.1]} 44. Nb4 {[%clk 0:00:07.2]}
44... Kg6 {[%clk 0:00:04]} 45. Nc2 {[%clk 0:00:07.2]} 45... Kf5 {[%clk 0:00:04]}
46. Nd4+ {[%clk 0:00:06.8]} 46... Kf4 {[%clk 0:00:03.9]} 47. Kd3 {[%clk
0:00:07.2]} 47... Re3+ {[%clk 0:00:03.6]} 48. Kd2 {[%clk 0:00:06.9]} 48... Re7
{[%clk 0:00:04.5]} 49. Ne2+ {[%clk 0:00:06.6]} 49... Ke5 {[%clk 0:00:04.3]} 50.
g4 {[%clk 0:00:06.9]} 50... Kd6 {[%clk 0:00:04.5]} 51. Rc3 {[%clk 0:00:06.3]}
51... Nd7 {[%clk 0:00:04.5]} 52. Rd3 {[%clk 0:00:06.5]} 52... Ne5 {[%clk
0:00:04.6]} 53. Re3 {[%clk 0:00:06.9]} 53... Nc6 {[%clk 0:00:05.1]} 54. Ng3
{[%clk 0:00:05.4]} 54... Rxe3 {[%clk 0:00:05]} 55. Kxe3 {[%clk 0:00:06.3]} 55...
Ke5 {[%clk 0:00:05.9]} 56. Nf5 {[%clk 0:00:06.2]} 56... d4+ {[%clk 0:00:06.1]}
57. Kd3 {[%clk 0:00:06.7]} 57... Nb4+ {[%clk 0:00:06.5]} 58. Kc4 {[%clk
0:00:05.6]} 58... Nxa2 {[%clk 0:00:07.1]} 59. Nxd4 {[%clk 0:00:05.4]} 59... b5+
{[%clk 0:00:06]} 60. Kd3 {[%clk 0:00:04.9]} 60... Nb4+ {[%clk 0:00:06]} 61. Ke3
{[%clk 0:00:05.5]} 61... Nd5+ {[%clk 0:00:06.5]} 62. Kd3 {[%clk 0:00:06.1]}
62... Kf4 {[%clk 0:00:07]} 63. Nf5 {[%clk 0:00:05.1]} 63... Kxf3 {[%clk
0:00:06.9]} 64. Nh6 {[%clk 0:00:05.7]} 64... f6 {[%clk 0:00:06.6]} 65. Kd4
{[%clk 0:00:06.2]} 65... Ne7 {[%clk 0:00:06.5]} 66. Kc5 {[%clk 0:00:06]} 66...
Ke4 {[%clk 0:00:06.3]} 67. Kb6 {[%clk 0:00:05.9]} 67... b4 {[%clk 0:00:06.8]}
68. Kxa6 {[%clk 0:00:05.6]} 68... Kd4 {[%clk 0:00:07.5]} 69. Kb5 {[%clk
0:00:05.5]} 69... Kc3 {[%clk 0:00:08]} 70. Ka4 {[%clk 0:00:05.9]} 70... Nc8
{[%clk 0:00:07.5]} 71. Ng8 {[%clk 0:00:06.1]} 71... Nb6+ {[%clk 0:00:07.6]} 72.
Kb5 {[%clk 0:00:06.3]} 72... Nd7 {[%clk 0:00:08.5]} 73. Ka4 {[%clk 0:00:06.3]}
73... Nc5+ {[%clk 0:00:08.7]} 74. Kb5 {[%clk 0:00:06.8]} 74... Nxb3 {[%clk
0:00:09.6]} 75. Nxf6 {[%clk 0:00:06.1]} 75... Nd4+ {[%clk 0:00:10]} 76. Ka4
{[%clk 0:00:05.7]} 76... b3 {[%clk 0:00:10.9]} 77. Ne4+ {[%clk 0:00:05.9]} 77...
Kc2 {[%clk 0:00:11.4]} 78. Nxg5 {[%clk 0:00:03.4]} 78... b2 {[%clk 0:00:11.4]}
79. Ne6 {[%clk 0:00:04.3]} 79... Nxe6 {[%clk 0:00:11.6]} 0-1